[Event "98th Caplin Hastings Masters 2024-25"]
[Site "Hastings"]
[Date "2025.01.01"]
[Round "7.21"]
[White "Lishoy Gengis Paratazham, Dildarav"]
[Black "Lucas, Arthur"]
[Result "0-1"]
[ECO "A87"]
[WhiteElo "2037"]
[BlackElo "2335"]
[Annotator "TA"]
[PlyCount "86"]
[EventDate "2024.12.23"]
[EventType "swiss"]
[EventCountry "ENG"]
[SourceTitle "playchess.com"]
[Source "ChessBase"]
[SourceQuality "1"]
[TimeControl "5400+30"]

{[%evp 18,85,28,29,29,0,0,-32,148,149,208,184,150,-35,7,-38,133,102,147,0,0,0,0,0,43,39,38,41,137,70,76,47,96,0,0,-73,-60,-57,-73,-126,-96,-162,-157,-162,0,0,0,0,53,0,0,-1015,-997,-1157,-56,-54,-54,-530,-518,-1104,-1091,-1317,-1344,-29986,-29987,-29987,-29988,-29991,-29991,-29999]} 1. Nf3 {[%emt 0:00:02]} f5 {[%emt 0:08:37]} 2. g3 {[%emt 0:00:16]} Nf6 {[%emt 0:00:07]} 3. Bg2 {[%emt 0:00:06]} g6 {[%emt 0:00:24]} 4. O-O {[%emt 0:00:07]} Bg7 {[%emt 0:00:02]} 5. c4 {[%emt 1:32:29]} O-O {[%emt 0:00:11]} 6. Nc3 {[%emt 0:00:00]} d6 {[%emt 0:00:03]} 7. d4 {[%emt 0:00:00]} Qe8 {[%emt 0:00:03]} 8. Re1 {[%emt 0:00:00]} e5 {[%emt 0:00:04]} 9. dxe5 {[%emt 0:00:00]} dxe5 {[%emt 0:00:04]} 10. e4 {[%emt 0:00:00]} Nc6 {[%emt 0:00:14]} 11. Be3 {[%emt 0:00:00]} f4 $1 {[%emt 0:05:29]} 12. gxf4 {[%emt 0:00:00]} Nh5 $2 {[%emt 0:01:50]} (12... Bg4 $1 $15) 13. Nd5 $16 {[%emt 0:00:00]} exf4 {[%emt 0:04:48]} (13... Rb8 $16) 14. Bc5 $1 $18 {[%emt 0:00:00][%cal Od5c7]} (14. Nxc7 Qf7 $15) 14... Rf7 {[%emt 0:02:39][%cal Oc8g4]} 15. Qb3 $2 {[%emt 0:00:00]} (15. e5 $16) 15... b6 {[%emt 0:01:51]} (15... Ne5 {keeps more tension.} 16. Ng5 Rd7 17. Bd4 c6) 16. Ba3 {[%emt 0:00:00][%cal Oe4e5]} Na5 $2 {[%emt 0:15:05]} (16... Ne5 $1 $15 {stays ahead.}) 17. Qd3 {[%emt 0:00:00]} c6 {[%emt 0:04:09]} 18. Nc3 {[%emt 0:00:00]} ({White must play} 18. Ng5 $1 $16 {[%cal Rg5f7]} Rb7 19. e5) 18... Be6 $11 {[%emt 0:03:57][%cal Oa8d8]} 19. b3 {[%emt 0:00:00]} Rd8 {[%emt 0:00:16] Prevents e5} 20. Qc2 {[%emt 0:00:00]} h6 {[%emt 0:03:52]} 21. e5 {[%emt 0:00:00]} (21. Rad1 {simplifies} Rxd1 22. Rxd1 c5 23. Nb5) 21... Bf5 {[%emt 0:03:46]} 22. Ne4 {[%emt 0:00:00]} g5 {[%emt 0:01:51]} (22... c5 $14) 23. Bb2 {[%emt 0:00:00]} (23. Rad1 $16 {[%cal Oe5e6] and e6! should not be overlooked} c5 24. e6) 23... c5 $14 {[%emt 0:08:35]} 24. Rad1 {[%emt 0:00:00]} Nc6 {[%emt 0:03:55]} (24... Rfd7 $1 $14 25. Rxd7 Qxd7) 25. Qc1 {[%emt 0:00:00]} (25. Rxd8 $16 Nxd8 (25... Qxd8 26. Qe2 $16) 26. h3) 25... Bxe4 {[%emt 0:13:46]} (25... Nxe5 $2 26. Nxe5 Bxe5 (26... Rxd1 $2 27. Qxd1 Bxe5 28. Nd6 $18) 27. Nd6 Bxd6 28. Rxe8+ Rxe8 29. Rxd6 $18) 26. Rxd8 {[%emt 0:00:00]} (26. Rxe4 $11 Rxd1+ 27. Qxd1) 26... Nxd8 $17 {[%emt 0:00:19]} 27. Rxe4 {[%emt 0:00:00]} g4 {[%emt 0:00:42] Prevents Bh3.} 28. Nh4 {[%emt 0:00:00] [#]} (28. Nd2 $142) 28... Ne6 $1 {[%emt 0:01:04]} 29. Re1 {[%emt 0:00:00]} (29. Qd1 $17 {was called for.} f3 30. Bf1) 29... f3 $19 {[%emt 0:00:47]} 30. Bf1 {[%emt 0:00:00]} Qd8 $2 {[%emt 0:08:16]} ({Black should try} 30... Nhf4 $19 31. Qc2 Rf8) 31. Ng6 $11 {[%emt 0:00:00]} Rd7 {[%emt 0:01:11]} 32. Qb1 {[%emt 0:01:25]} Rf7 {[%emt 0:07:39] Against Qf5} (32... g3 $11 33. hxg3 (33. fxg3 Rd2 $11) 33... Nxg3) 33. Qe4 {[%emt 0:02:27]} ({White should try} 33. Bc1 $14) 33... g3 $1 {[%emt 0:00:33] ...gxf2+ is the strong threat.} 34. Qd3 $2 {[%emt 0:06:07][%mdl 8192]} (34. hxg3 Nxg3 35. Qg4 (35. Qd5 $2 Qg5 $19) 35... Nxf1 (35... Qd2 36. Re3 $17) 36. Kxf1 Qd3+ 37. Kg1 Kh7 38. Qxe6 Rf6 $17 (38... Qxg6+ 39. Qxg6+ Kxg6 40. Kh2 $14)) (34. Bc1 $11 gxf2+ 35. Kxf2) 34... Qg5 $19 {[%emt 0:00:38]} 35. Bc1 {[%emt 0:00:53]} gxh2+ $2 {[%emt 0:00:38]} (35... gxf2+ $19 36. Kxf2 Qg1+ 37. Kxg1 f2+ 38. Kg2 fxe1=Q (38... fxe1=R 39. Be2 $16) (38... fxe1=N+ $2 39. Kh1 $19)) 36. Kxh2 $15 {[%emt 0:00:01]} Nhf4 $40 {[%emt 0:00:33][%mdl 128] Black has some attack. Chess con chili.} 37. Nxf4 $4 {[%emt 0:03:11][%mdl 8192]} (37. Bxf4 $1 $15 Nxf4 38. Nxf4 Qxf4+ 39. Kh3 Bxe5 40. Qg6+ Kf8 41. Qg3 Qxg3+ 42. fxg3) 37... Nxf4 $19 {[%emt 0:00:02]} 38. Qxf3 {[%emt 0:01:01] [#]} (38. Bxf4 $142 Qh4+ (38... Rxf4 39. Bh3 $15) (38... Qxf4+ 39. Kh3 $17) 39. Kg1 Rxf4 (39... Qxf4 40. Qd8+ Rf8 41. Qd5+ Kh8 42. Bh3 $11) 40. Qd5+ Kh7 41. Bd3+ Kh8 42. Re4) 38... Qh4+ $1 {[%emt 0:00:29]} ({Not} 38... Bxe5 39. Bxf4 Rxf4 40. Qd5+ Kf8 41. Rxe5 $15 (41. Qxe5 Rxf2+ 42. Kh3 Rf3+ 43. Kh2 Qxe5+ 44. Rxe5 Rxf1 $17)) 39. Kg1 {[%emt 0:00:16] [#]} Nh3+ $1 {[%emt 0:00:25][%mdl 512]} 40. Qxh3 {[%emt 0:00:22]} (40. Bxh3 Rxf3) 40... Qxf2+ {[%emt 0:00:04]} 41. Kh1 {[%emt 0:00:05]} Qxe1 {[%emt 0:00:03]} 42. Kh2 {[%emt 0:00:34]} Bxe5+ {[%emt 0:00:13]} 43. Kg2 {[%emt 0:00:05]} Qxf1# {[%emt 0:00:04]} 0-1

[Event "98th Caplin Hastings Masters 2024-25"]
[Site "Hastings"]
[Date "2025.01.01"]
[Round "7.22"]
[White "Rida, Ruqayyah"]
[Black "Badacsonyi, Frankie"]
[Result "1/2-1/2"]
[ECO "B33"]
[WhiteElo "2019"]
[BlackElo "2218"]
[Annotator "TA"]
[PlyCount "108"]
[EventDate "2024.12.23"]
[EventType "swiss"]
[EventCountry "ENG"]
[SourceTitle "playchess.com"]
[Source "ChessBase"]
[SourceQuality "1"]
[TimeControl "5400+30"]

{[%evp 9,108,29,69,43,36,37,56,65,63,62,58,55,54,27,64,25,20,-140,35,45,81,66,105,97,97,104,105,99,132,56,50,48,57,59,66,63,62,36,35,15,12,13,39,16,31,15,12,8,26,23,29,0,0,0,0,0,0,0,0,0,0,0,0,0,0,0,0,-10,0,0,0,-2,0,-8,-5,-25,-6,-44,0,-19,0,-20,0,0,0,0,0,0,8,8,8,0,8,8,164,163,235,224,223,223,134]} 1. e4 {[%emt 1:31:00]} c5 {[%emt 0:00:24]} 2. Nf3 {[%emt 0:00:00][%cal Bg1f3,Bf3d4,Bd4b5,Bb5d6][%mdl 32]} Nc6 {[%emt 0:00:28]} 3. d4 {[%emt 0:00:00]} cxd4 {[%emt 0:00:05]} 4. Nxd4 {[%emt 0:00:00]} Nf6 {[%emt 0:00:07]} 5. Nc3 {[%emt 0:00:00]} h5 {[%emt 0:02:18]} 6. Bc4 {[%emt 0:00:00]} e6 {[%emt 0:00:12]} 7. Bf4 {[%emt 0:00:00] Repels Qc7} Bc5 {[%emt 0:28:58]} 8. Ndb5 {[%emt 0:00:00]} O-O {[%emt 0:17:19]} 9. Bc7 {[%emt 0:00:00]} Qe7 {[%emt 0:00:17] Strongly threatening ...d5.} 10. Bd6 {[%emt 0:00:00]} Bxd6 {[%emt 0:00:05]} 11. Nxd6 {[%emt 0:00:00]} e5 {[%emt 0:03:36]} 12. Nf5 {[%emt 0:00:00] Prevents Nd4. White has more active pieces.} Qb4 {[%emt 0:07:16][%csl LRb2,LRc4,LRe4]} 13. Qd3 $2 {[%emt 0:00:00]} ({White should play} 13. Bb3 $11) 13... Nd4 $2 {[%emt 0:10:21]} (13... Qxb2 14. Rb1 Qa3 15. Qg3 $14) (13... d5 $1 $17 {[%cal Rd5c4]} 14. Bxd5 Nxd5 (14... Qxb2 15. Rb1 $11) 15. exd5 Bxf5 (15... Qxb2 16. Nh6+ gxh6 17. Rb1 $14) 16. Qxf5 Qxb2) 14. O-O-O $14 {[%emt 0:00:00]} Nxf5 {[%emt 0:03:26]} 15. exf5 {[%emt 0:00:00]} d5 {[%emt 0:08:23]} 16. Bxd5 {[%emt 0:00:00]} Qf4+ {[%emt 0:00:17]} 17. Qe3 {[%emt 0:00:00]} Qxf5 {[%emt 0:01:56]} 18. f3 {[%emt 0:00:00] Prevents Ng4} Be6 {[%emt 0:00:52]} 19. Rhe1 {[%emt 0:00:00]} (19. Bxb7 $16 Rab8 20. Bd5 (20. Qxa7 $2 {loses.} Qf4+ 21. Kb1 Qb4 $19)) 19... Bxd5 {[%emt 0:02:47]} 20. Nxd5 {[%emt 0:00:00]} Nxd5 {[%emt 0:00:03]} 21. Rxd5 {[%emt 0:00:00]} f6 {[%emt 0:01:45]} 22. Red1 {[%emt 0:00:00]} Rf7 {[%emt 0:01:09]} 23. Qb3 {[%emt 0:02:18]} Kh7 {[%emt 0:02:32][%cal Bg8h7,Bh7g6,Bg6f5,Bf5e6,Be6e7,Be7f7][%mdl 32]} 24. Qd3 {[%emt 0:02:01]} Qxd3 {[%emt 0:00:32]} 25. R1xd3 $11 {[%emt 0:00:02][%mdl 4096] Endgame KRR-KRR} Rc7 {[%emt 0:00:44]} 26. Kd2 {[%emt 0:00:17]} Kg6 {[%emt 0:00:07]} 27. c3 {[%emt 0:00:33]} Kf5 {[%emt 0:00:22]} 28. Ke3 {[%emt 0:00:30]} Ke6 {[%emt 0:01:06]} 29. Rd6+ {[%emt 0:03:32]} Ke7 {[%emt 0:00:25]} 30. f4 {[%emt 0:01:09]} exf4+ {[%emt 0:00:23]} 31. Kxf4 {[%emt 0:04:38]} Re8 {[%emt 0:01:26]} 32. Kf5 {[%emt 0:00:00]} Kf7 {[%emt 0:00:25]} 33. Rd7+ {[%emt 0:00:00]} Re7 {[%emt 0:00:01]} 34. Rxc7 {[%emt 0:00:00]} Rxc7 {[%emt 0:00:07] KR-KR} 35. Ke4 {[%emt 0:00:18]} Re7+ {[%emt 0:00:30]} 36. Kf3 {[%emt 0:00:08]} g5 {[%emt 0:00:30]} 37. Rd5 {[%emt 0:01:11]} Kg6 {[%emt 0:00:24]} 38. c4 {[%emt 0:00:46]} g4+ {[%emt 0:02:00]} 39. Kf2 {[%emt 0:00:05]} f5 {[%emt 0:00:06]} 40. Rd8 {[%emt 0:01:17]} h4 {[%emt 0:00:47]} 41. Rg8+ {[%emt 0:00:33]} Kf6 {[%emt 0:00:06]} 42. Rd8 {[%emt 0:00:28]} Kg5 {[%emt 0:01:33]} 43. g3 {[%emt 0:00:35]} h3 {[%emt 0:00:11]} 44. b3 {[%emt 0:00:10]} Kf6 {[%emt 0:00:31]} 45. Rd5 {[%emt 0:00:38]} a6 {[%emt 0:00:30]} 46. Rd8 {[%emt 0:00:45]} Ke5 {[%emt 0:01:28]} 47. Rd1 {[%emt 0:00:26]} Rc7 {[%emt 0:00:40]} 48. Ke3 $1 {[%emt 0:00:12]} b5 {[%emt 0:00:30]} 49. Rd5+ {[%emt 0:00:43]} Ke6 {[%emt 0:00:00]} 50. Rd4 {[%emt 0:00:35]} Rc5 {[%emt 0:01:38]} 51. Kf4 {[%emt 0:00:33][%cal Od4d5] Rd5! would now be deadly.} Re5 $2 {[%emt 0:00:34]} (51... Rc7 $11) 52. cxb5 $18 {[%emt 0:00:14]} Rxb5 {[%emt 0:01:56]} (52... axb5 {was necessary.} 53. Rd8 Rc5) 53. Rc4 {[%emt 0:00:43]} a5 {[%emt 0:00:47] [#]} 54. Rc6+ $1 {[%emt 0:00:20]} Ke7 {[%emt 0:00:15]} 1/2-1/2

[Event "98th Caplin Hastings Masters 2024-25"]
[Site "Hastings"]
[Date "2025.01.01"]
[Round "7.23"]
[White "Golding, James"]
[Black "Suez-Panama, Gilles"]
[Result "1-0"]
[ECO "A92"]
[WhiteElo "2203"]
[BlackElo "1979"]
[Annotator "TA"]
[PlyCount "97"]
[EventDate "2024.12.23"]
[EventType "swiss"]
[EventCountry "ENG"]
[SourceTitle "playchess.com"]
[Source "ChessBase"]
[SourceQuality "1"]
[TimeControl "5400+30"]

{[%evp 10,97,32,36,48,40,67,44,55,47,44,50,53,48,53,50,59,50,53,60,106,28,52,35,48,20,22,12,40,23,42,15,47,48,82,85,85,48,62,56,83,-34,-47,-111,-124,-119,-130,-119,-106,-108,64,-122,-145,-106,231,225,230,215,385,363,546,512,537,486,504,464,458,374,480,494,692,687,653,628,745,646,699,691,783,778,726,714,1304,1292,1237,1209,5273,5173,1910,1733]} 1. d4 {[%emt 0:00:03]} e6 {[%emt 0:00:19]} 2. c4 {[%emt 0:00:04]} d5 {[%emt 0:00:07]} 3. Nf3 {[%emt 0:00:05]} f5 {[%emt 0:00:27]} 4. g3 {[%emt 0:00:19]} Nf6 {[%emt 0:00:07]} 5. Bg2 {[%emt 0:00:05]} Be7 {[%emt 0:01:43]} 6. O-O {[%emt 0:00:07]} Ne4 {[%emt 0:00:53]} 7. Qc2 {[%emt 0:07:56]} Nc6 {[%emt 0:04:10][%cal Bb8c6,Bc6e7,Be7g6][%mdl 32]} 8. a3 {[%emt 0:02:55]} Bf6 {[%emt 0:01:10] White is slightly better.} 9. Rd1 {[%emt 0:00:16]} O-O {[%emt 0:06:33]} 10. b4 {[%emt 0:02:27]} Ne7 {[%emt 0:04:14]} 11. Ne5 {[%emt 0:22:15]} c6 {[%emt 0:09:16]} 12. e3 {[%emt 0:09:04]} Qe8 {[%emt 0:03:45]} 13. Bb2 {[%emt 0:08:21]} Ng6 {[%emt 0:06:07]} 14. Nd3 {[%emt 0:03:17]} h5 {[%emt 0:01:30] [#]} (14... a5 $14) 15. Bf3 {[%emt 0:02:41]} (15. h4 $1 $16) 15... Nh8 {[%emt 0:03:06]} 16. Nc3 {[%emt 0:08:13]} g5 {[%emt 0:03:04]} 17. Ne2 {[%emt 0:00:33]} Qg6 {[%emt 0:03:09]} 18. Bg2 {[%emt 0:02:22]} Bd7 {[%emt 0:03:10]} 19. Rac1 {[%emt 0:03:00][%cal Ob4b5]} Qg7 {[%emt 0:02:40]} 20. Qb3 {[%emt 0:05:49]} Rae8 {[%emt 0:01:46][%cal Ba8e8,Be8e7,Be7f7][%mdl 32]} 21. a4 {[%emt 0:03:49]} Kh7 {[%emt 0:05:07]} 22. b5 {[%emt 0:01:35]} Ng6 {[%emt 0:10:12] Prevents Ne5.} 23. Ba3 {[%emt 0:01:10] [#] Strongly threatening f3.} Be7 $1 {[%emt 0:01:51]} 24. Bxe7 {[%emt 0:01:45]} Rxe7 {[%emt 0:00:40]} 25. f3 {[%emt 0:01:33]} (25. cxd5 $16 exd5 26. bxc6 bxc6 27. Rc2) 25... Nd6 $15 {[%emt 0:01:20]} 26. Nb2 {[%emt 0:00:44]} (26. c5 $15 Nc4 27. Nb2) 26... f4 $17 {[%emt 0:02:25]} 27. e4 {[%emt 0:03:19] Against Nf5} dxe4 {[%emt 0:05:49]} 28. fxe4 {[%emt 0:00:10]} Ref7 {[%emt 0:00:45] aiming for ...f3.} 29. Rf1 {[%emt 0:00:33]} g4 $2 {[%emt 0:06:20]} (29... cxb5 $17 {Hoping for ...Nxc4.} 30. cxb5 e5 31. dxe5 Nxe5) 30. e5 $2 {[%emt 0:00:15]} (30. c5 Nxb5 31. axb5 f3 $17) (30. gxf4 $14 {stays ahead.} Nxf4 31. Nxf4 Rxf4 (31... Qxd4+ $2 32. Kh1 $18) 32. e5 Rxf1+ 33. Rxf1 Rxf1+ 34. Kxf1) 30... f3 $1 {[%emt 0:02:52]} 31. exd6 {[%emt 0:00:07][%cal Ob2d3]} fxe2 $4 {[%emt 0:02:57][%mdl 8192] Black cannot hold the game after this.} (31... fxg2 $17 {keeps the pressure on.} 32. Kxg2 Rf3) 32. Rxf7 $18 {[%emt 0:00:11]} Rxf7 {[%emt 0:02:49]} 33. Qe3 {[%emt 0:00:48]} c5 $2 {[%emt 0:01:47]} (33... e5 34. Nd3 (34. Qxe2 exd4 35. Nd3 cxb5 $18) 34... exd4 35. Qxe2 cxb5) 34. Nd3 {[%emt 0:00:19]} ({Weaker is} 34. Bxb7 Qf6 (34... cxd4 $2 {perishes.} 35. Qxe2 Kh8 36. Nd3 $18) (34... Qxd4 $2 35. Qxd4 cxd4 36. c5 $18) 35. Qxe2 Qxd4+ (35... cxd4 $2 {is the wrong capture.} 36. Rf1 $18) 36. Kg2 h4 $18) 34... cxd4 {[%emt 0:02:13]} (34... Qxd4 $142 35. Qxd4 cxd4) 35. Qxe2 {[%emt 0:00:15]} b6 {[%emt 0:00:25]} 36. Be4 {[%emt 0:01:10]} Kg8 {[%emt 0:00:49]} 37. Re1 {[%emt 0:02:33]} Rf6 {[%emt 0:01:29]} 38. Qd2 {[%emt 0:02:14]} Nf8 {[%emt 0:00:48]} 39. Ne5 {[%emt 0:01:00] White is clearly winning.} Qh6 {[%emt 0:01:28]} (39... Be8 $142 40. Qxd4 Nd7) 40. Qxh6 {[%emt 0:02:09]} Rxh6 {[%emt 0:00:08]} 41. Rf1 {[%emt 0:00:13] Repels Rf6} Be8 {[%emt 0:00:43]} 42. Bc6 {[%emt 0:00:07] Prevents Nd7.} Bg6 {[%emt 0:00:42]} 43. Rd1 {[%emt 0:01:46]} d3 {[%emt 0:00:23]} 44. Nxg6 {[%emt 0:00:24]} Rxg6 {[%emt 0:00:12]} 45. Rxd3 {[%emt 0:00:09]} Rg7 {[%emt 0:00:52]} 46. d7 {[%emt 0:00:06]} Nxd7 {[%emt 0:00:10]} 47. Rxd7 {[%emt 0:00:06]} Rxd7 {[%emt 0:00:13]} 48. Bxd7 {[%emt 0:00:05]} Kf7 {[%emt 0:00:04]} 49. Kf2 {[%emt 0:00:12] Weighted Error Value: White=0.25 (precise) /Black=0.48.  Loses game:     	---       	Black=1      Mistake:       	White=4     	Black=5      Inaccurate:     	White=3     	Black=5      OK:         	White=13    	Black=9      Best:        	White=1     	Black=2      Strong:       	---       	Black=2} 1-0

[Event "98th Caplin Hastings Masters 2024-25"]
[Site "Hastings"]
[Date "2025.01.01"]
[Round "7.24"]
[White "Jukes, Sam"]
[Black "Brown, Tom"]
[Result "1/2-1/2"]
[ECO "B15"]
[WhiteElo "1911"]
[BlackElo "1932"]
[Annotator "NA RC"]
[PlyCount "88"]
[EventDate "2024.12.23"]
[EventType "swiss"]
[EventCountry "ENG"]
[SourceTitle "playchess.com"]
[Source "ChessBase"]
[SourceQuality "1"]
[TimeControl "5400+30"]

1. e4 {[%emt 0:00:03]} c6 {[%emt 0:00:05]} 2. d4 {[%emt 0:00:04]} d5 {[%emt 0:00:04]} 3. Nc3 {[%emt 0:00:04]} dxe4 {[%emt 0:00:04]} 4. Nxe4 {[%emt 0:00:07]} Nf6 {[%emt 0:00:08]} 5. Nxf6+ {[%emt 0:00:25]} exf6 {[%emt 0:00:05]} 6. c3 {[%emt 0:00:15]} Bd6 {[%emt 0:00:15]} 7. Bd3 {[%emt 0:00:37]} O-O {[%emt 0:00:14]} 8. Qc2 {[%emt 0:00:04]} Re8+ {[%emt 0:00:08]} 9. Ne2 {[%emt 0:00:07]} h5 {[%emt 0:00:49]} 10. O-O {[%emt 0:01:02]} h4 {[%emt 0:00:53]} 11. h3 {[%emt 0:00:19]} Nd7 {[%emt 0:01:17]} 12. Bd2 {[%emt 0:05:52]} Nf8 {[%emt 0:00:15]} 13. Rfe1 {[%emt 0:01:49]} Ne6 {[%emt 0:04:37]} 14. c4 {[%emt 0:15:13]} Bc7 {[%emt 0:12:36]} 15. Rad1 {[%emt 0:22:11]} Qd6 {[%emt 0:17:06]} 16. f4 {[%emt 0:02:31]} Nxd4 {[%emt 0:14:25]} 17. Nxd4 {[%emt 0:01:40]} Rxe1+ {[%emt 0:00:13]} 18. Rxe1 {[%emt 0:00:51]} Qxd4+ {[%emt 0:00:37]} 19. Be3 {[%emt 0:00:07]} Qd8 {[%emt 0:01:44]} 20. Rd1 {[%emt 0:06:49]} Qe7 {[%emt 0:01:45]} 21. Qf2 {[%emt 0:02:29]} b6 {[%emt 0:06:15]} 22. Re1 {[%emt 0:11:28]} Qd6 {[%emt 0:06:31]} 23. Bc5 {[%emt 0:06:14]} Qxd3 {[%emt 0:05:46]} 24. Re8+ {[%emt 0:01:37]} Kh7 {[%emt 0:00:04]} 25. Qxh4+ {[%emt 0:01:36]} Kg6 {[%emt 0:00:07]} 26. Rh8 {[%emt 0:14:35]} Qb1+ {[%emt 0:01:02]} 27. Kh2 {[%emt 0:00:09]} Bxf4+ {[%emt 0:00:21]} 28. Qxf4 {[%emt 0:01:04]} Qf5 {[%emt 0:00:31]} 29. Qxf5+ {[%emt 0:01:24]} Kxf5 {[%emt 0:00:21]} 30. Bf2 {[%emt 0:01:47]} Bb7 {[%emt 0:00:40]} 31. g4+ {[%emt 0:00:21]} Ke4 {[%emt 0:01:13]} 32. Rxa8 {[%emt 0:02:27]} Bxa8 {[%emt 0:00:07]} 33. c5 {[%emt 0:00:30]} b5 {[%emt 0:00:07]} 34. Kg3 {[%emt 0:00:09]} Bb7 {[%emt 0:00:48]} 35. a3 {[%emt 0:00:31]} Bc8 {[%emt 0:02:05]} 36. h4 {[%emt 0:00:28]} f5 {[%emt 0:02:00]} 37. gxf5 {[%emt 0:00:07]} Bxf5 {[%emt 0:01:13]} 38. Be1 {[%emt 0:00:18]} g6 {[%emt 0:01:39]} 39. Bc3 {[%emt 0:00:49]} Be6 {[%emt 0:00:17]} 40. Bf6 {[%emt 0:00:43]} a5 {[%emt 0:01:03]} 41. Bd8 {[%emt 0:01:00]} Kd5 {[%emt 0:04:03]} 42. Be7 {[%emt 0:00:23]} Ke4 {[%emt 0:01:18]} 43. Bd8 {[%emt 0:00:17]} f5 {[%emt 0:02:44]} 44. Bc7 {[%emt 0:00:15]} Bf7 {[%emt 0:05:11]} 1/2-1/2

[Event "98th Caplin Hastings Masters 2024-25"]
[Site "Hastings"]
[Date "2025.01.01"]
[Round "7.25"]
[White "Saunders, Aron"]
[Black "Ashton, Alannah"]
[Result "1-0"]
[ECO "B51"]
[WhiteElo "2106"]
[BlackElo "1953"]
[Annotator "NA RC"]
[PlyCount "67"]
[EventDate "2024.12.23"]
[EventType "swiss"]
[EventCountry "ENG"]
[SourceTitle "playchess.com"]
[Source "ChessBase"]
[SourceQuality "1"]
[TimeControl "5400+30"]

1. e4 {[%emt 0:00:03]} c5 {[%emt 0:00:02]} 2. Nf3 {[%emt 0:00:04]} d6 {[%emt 0:00:02]} 3. Bb5+ {[%emt 0:00:05]} Nd7 {[%emt 0:00:12]} 4. a4 {[%emt 0:00:09]} a6 {[%emt 0:00:38]} 5. Be2 {[%emt 0:02:35]} Ngf6 {[%emt 0:02:26]} 6. Nc3 {[%emt 0:00:21]} b6 {[%emt 0:04:59]} 7. d4 {[%emt 0:02:20]} cxd4 {[%emt 0:01:01]} 8. Qxd4 {[%emt 0:02:29]} g6 {[%emt 0:05:42]} 9. Bc4 {[%emt 0:10:52]} h6 {[%emt 0:05:16]} 10. Be3 {[%emt 0:04:29]} Bg7 {[%emt 0:02:53]} 11. O-O {[%emt 0:01:13]} O-O {[%emt 0:00:56]} 12. Qd2 {[%emt 0:01:14]} Kh7 {[%emt 0:02:33]} 13. Rad1 {[%emt 0:07:16]} Bb7 {[%emt 0:06:54]} 14. Bd5 {[%emt 0:03:16]} Bxd5 {[%emt 0:04:11]} 15. exd5 {[%emt 0:00:09]} Rc8 {[%emt 0:03:50]} 16. Qe2 {[%emt 0:03:36]} Rxc3 {[%emt 0:32:34]} 17. bxc3 {[%emt 0:00:05]} Ne4 {[%emt 0:01:27]} 18. Bd4 {[%emt 0:07:12]} Bxd4 {[%emt 0:04:15]} 19. Rxd4 {[%emt 0:02:08]} Nxc3 {[%emt 0:16:30]} 20. Qd3 {[%emt 0:04:41]} Nxa4 {[%emt 0:00:09]} 21. Rxa4 {[%emt 0:00:08]} Nc5 {[%emt 0:00:04]} 22. Qa3 {[%emt 0:00:18]} Nxa4 {[%emt 0:00:04]} 23. Qxa4 {[%emt 0:00:05]} Qa8 {[%emt 0:00:43]} 24. c4 {[%emt 0:01:14]} Rc8 {[%emt 0:01:53]} 25. Re1 {[%emt 0:02:44]} Qb7 {[%emt 0:00:32]} 26. h4 {[%emt 0:03:06]} b5 {[%emt 0:00:38]} 27. cxb5 {[%emt 0:00:06]} axb5 {[%emt 0:00:07]} 28. Qf4 {[%emt 0:01:20]} Kg7 {[%emt 0:01:40]} 29. Qd4+ {[%emt 0:00:06]} Kh7 {[%emt 0:00:28]} 30. h5 {[%emt 0:00:30]} Rc4 {[%emt 0:01:53]} 31. hxg6+ {[%emt 0:00:11]} fxg6 {[%emt 0:00:06]} 32. Qd3 {[%emt 0:00:27]} Rf4 {[%emt 0:00:59]} 33. Re6 {[%emt 0:02:26]} Rf6 {[%emt 0:00:28]} 34. Qe4 {[%emt 0:05:38]} 1-0

[Event "98th Caplin Hastings Masters 2024-25"]
[Site "Hastings"]
[Date "2025.01.01"]
[Round "7.26"]
[White "Patel, Zain"]
[Black "Sciupokas, Arunas"]
[Result "1/2-1/2"]
[ECO "B00"]
[WhiteElo "2099"]
[BlackElo "1969"]
[Annotator "NA RC"]
[PlyCount "47"]
[EventDate "2024.12.23"]
[EventType "swiss"]
[EventCountry "ENG"]
[SourceTitle "playchess.com"]
[Source "ChessBase"]
[SourceQuality "1"]
[TimeControl "5400+30"]

1. Nf3 {[%emt 0:02:53]} Nc6 {[%emt 0:00:11]} 2. e4 {[%emt 0:01:35]} d6 {[%emt 0:01:02]} 3. d4 {[%emt 0:00:36]} Nf6 {[%emt 0:00:17]} 4. Nc3 {[%emt 0:00:16]} Bg4 {[%emt 0:00:19]} 5. Be2 {[%emt 0:09:04]} e6 {[%emt 0:04:26]} 6. O-O {[%emt 0:02:17]} Be7 {[%emt 0:00:05]} 7. Be3 {[%emt 0:03:01]} O-O {[%emt 0:00:27]} 8. h3 {[%emt 0:06:34]} Bh5 {[%emt 0:00:21]} 9. a3 {[%emt 0:00:15]} Bg6 {[%emt 0:03:56]} 10. d5 {[%emt 0:05:32]} exd5 {[%emt 0:05:54]} 11. exd5 {[%emt 0:00:57]} Ne5 {[%emt 0:03:51]} 12. Nh4 {[%emt 0:09:42]} Nfd7 {[%emt 0:10:40]} 13. Nxg6 {[%emt 0:01:24]} Nxg6 {[%emt 0:00:34]} 14. Re1 {[%emt 0:04:41]} Bg5 {[%emt 0:02:51]} 15. Bd4 {[%emt 0:01:57]} Bf6 {[%emt 0:03:09]} 16. Bf1 {[%emt 0:01:16]} a6 {[%emt 0:05:17]} 17. Ne4 {[%emt 0:02:30]} Bxd4 {[%emt 0:03:05]} 18. Qxd4 {[%emt 0:45:00]} Nde5 {[%emt 0:08:14]} 19. c4 {[%emt 0:00:00]} Nh4 {[%emt 0:08:03]} 20. Qc3 {[%emt 0:00:00]} f5 {[%emt 0:07:27]} 21. Nd2 {[%emt 0:00:00]} f4 {[%emt 0:05:06]} 22. Kh2 {[%emt 0:00:00]} Qg5 {[%emt 0:05:11]} 23. Ne4 {[%emt 0:00:00]} Qg6 {[%emt 0:02:05]} 24. f3 {[%emt 0:00:00]} 1/2-1/2